[Event "Titled Tuesday Blitz September 27 Early 2022"]
[White "Arabidze, Meri"]
[Black "Ferreira, Vitor Hugo Vieira"]
[WhiteFideId "13604040"]
[BlackFideId "2119765"]
[WhiteElo "2335"]
[BlackElo "2168"]
[Result "1/2-1/2"]
[Round "02"]
[TimeControl "180+1"]
[Date "2022.09.27"]
[WhiteClock "0:00:14"]
[BlackClock "0:00:07"]

1. Nf3 {[%clk 0:03:00]}  Nf6 {[%clk 0:02:58]} 2. g3 {[%clk 0:03:01]}  d5 {[%clk 0:02:59]} 3. Bg2 {[%clk 0:03:01]}  Bg4 {[%clk 0:02:59]} 4. O-O {[%clk 0:03:02]}  Nbd7 {[%clk 0:02:58]} 5. d3 {[%clk 0:03:02]}  e6 {[%clk 0:02:58]} 6. h3 {[%clk 0:03:03]}  Bh5 {[%clk 0:02:58]} 7. Qe1 {[%clk 0:03:03]}  Be7 {[%clk 0:02:56]} 8. e4 {[%clk 0:03:02]}  O-O {[%clk 0:02:57]} 9. Nc3 {[%clk 0:03:02]}  c6 {[%clk 0:02:56]} 10. e5 {[%clk 0:03:00]}  Ne8 {[%clk 0:02:55]} 11. d4 {[%clk 0:03:01]}  Bg6 {[%clk 0:02:55]} 12. Qe2 {[%clk 0:03:00]}  c5 {[%clk 0:02:53]} 13. Be3 {[%clk 0:03:00]}  Nc7 {[%clk 0:02:48]} 14. Rfd1 {[%clk 0:02:58]}  Rb8 {[%clk 0:02:45]} 15. Rac1 {[%clk 0:02:53]}  b5 {[%clk 0:02:45]} 16. dxc5 {[%clk 0:02:52]}  Nxc5 {[%clk 0:02:38]} 17. Nd4 {[%clk 0:02:52]}  Qd7 {[%clk 0:02:33]} 18. Nb3 {[%clk 0:02:52]}  Nxb3 {[%clk 0:02:29]} 19. axb3 {[%clk 0:02:53]}  a5 {[%clk 0:02:25]} 20. h4 {[%clk 0:02:48]}  h5 {[%clk 0:02:23]} 21. Bf3 {[%clk 0:02:46]}  f6 {[%clk 0:01:58]} 22. Bxh5 {[%clk 0:02:45]}  Bxh5 {[%clk 0:01:58]} 23. Qxh5 {[%clk 0:02:46]}  fxe5 {[%clk 0:01:56]} 24. Qxe5 {[%clk 0:02:42]}  Rf5 {[%clk 0:01:50]} 25. Qd4 {[%clk 0:02:40]}  e5 {[%clk 0:01:45]} 26. Qd3 {[%clk 0:02:23]}  d4 {[%clk 0:01:41]} 27. Ne4 {[%clk 0:02:22]}  Qe6 {[%clk 0:01:30]} 28. Bg5 {[%clk 0:02:21]}  Bf8 {[%clk 0:01:17]} 29. c3 {[%clk 0:02:15]}  Qxb3 {[%clk 0:01:03]} 30. cxd4 {[%clk 0:02:13]}  Qxd3 {[%clk 0:01:02]} 31. Rxd3 {[%clk 0:02:14]}  exd4 {[%clk 0:01:02]} 32. Rxc7 {[%clk 0:02:12]}  b4 {[%clk 0:00:55]} 33. Rxd4 {[%clk 0:02:07]}  a4 {[%clk 0:00:54]} 34. g4 {[%clk 0:01:54]}  Ra5 {[%clk 0:00:48]} 35. Bd2 {[%clk 0:01:40]}  a3 {[%clk 0:00:26]} 36. bxa3 {[%clk 0:01:34]}  Rxa3 {[%clk 0:00:08]} 37. h5 {[%clk 0:01:24]}  b3 {[%clk 0:00:08]} 38. Bc3 {[%clk 0:01:24]}  b2 {[%clk 0:00:05]} 39. Bxb2 {[%clk 0:01:24]}  Rxb2 {[%clk 0:00:06]} 40. Rd8 {[%clk 0:01:22]}  Rf3 {[%clk 0:00:06]} 41. Rd2 {[%clk 0:00:57]}  Rb4 {[%clk 0:00:05]} 42. Re2 {[%clk 0:00:33]}  Rf4 {[%clk 0:00:05]} 43. Ng3 {[%clk 0:00:34]}  Rxg4 {[%clk 0:00:05]} 44. Rc8 {[%clk 0:00:33]}  Kf7 {[%clk 0:00:03]} 45. Ra2 {[%clk 0:00:30]}  Bd6 {[%clk 0:00:03]} 46. Kg2 {[%clk 0:00:23]}  Bxg3 {[%clk 0:00:03]} 47. fxg3 {[%clk 0:00:24]}  Rb3 {[%clk 0:00:03]} 48. Rf2+ {[%clk 0:00:22]}  Ke6 {[%clk 0:00:03]} 49. Rf3 {[%clk 0:00:20]}  Rb2+ {[%clk 0:00:04]} 50. Kh3 {[%clk 0:00:20]}  Rg5 {[%clk 0:00:05]} 51. g4 {[%clk 0:00:20]}  Rb4 {[%clk 0:00:05]} 52. Rc6+ {[%clk 0:00:14]}  Ke7 {[%clk 0:00:05]} 53. Rg6 {[%clk 0:00:13]}  Rxg6 {[%clk 0:00:04]} 54. hxg6 {[%clk 0:00:13]}  Rb6 {[%clk 0:00:05]} 55. Rf7+ {[%clk 0:00:13]}  Ke8 {[%clk 0:00:05]} 56. Rxg7 {[%clk 0:00:13]}  Kf8 {[%clk 0:00:06]} 57. Rf7+ {[%clk 0:00:14]}  Kg8 {[%clk 0:00:07]} 58. Ra7 {[%clk 0:00:10]}  Rxg6 {[%clk 0:00:07]} 59. Kh4 {[%clk 0:00:11]}  Rh6+ {[%clk 0:00:06]} 60. Kg5 {[%clk 0:00:11]}  Rc6 {[%clk 0:00:07]} 61. Kh5 {[%clk 0:00:12]}  Rd6 {[%clk 0:00:05]} 62. g5 {[%clk 0:00:12]}  Rc6 {[%clk 0:00:05]} 63. Rb7 {[%clk 0:00:12]}  Rd6 {[%clk 0:00:05]} 64. Rc7 {[%clk 0:00:12]}  Rb6 {[%clk 0:00:05]} 65. Ra7 {[%clk 0:00:12]}  Rc6 {[%clk 0:00:06]} 66. Ra8+ {[%clk 0:00:13]}  Kg7 {[%clk 0:00:06]} 67. Ra7+ {[%clk 0:00:14]}  Kg8 {[%clk 0:00:07]} 1/2-1/2


[Site "https://www.chess.com"]

[Event "Titled Tuesday Blitz September 27 Early 2022"]
[White "Azadaliyev, Jahandar"]
[Black "Saya, Ethan"]
[WhiteFideId "13425811"]
[BlackFideId "26095181"]
[WhiteElo "1810"]
[BlackElo "2162"]
[Result "1/2-1/2"]
[Round "02"]
[TimeControl "180+1"]
[Date "2022.09.27"]
[WhiteClock "0:00:25"]
[BlackClock "0:00:50"]

1. e4 {[%clk 0:02:59]}  d5 {[%clk 0:02:59]} 2. exd5 {[%clk 0:02:59]}  Qxd5 {[%clk 0:02:51]} 3. Nc3 {[%clk 0:02:59]}  Qa5 {[%clk 0:02:51]} 4. d3 {[%clk 0:02:59]}  Nf6 {[%clk 0:02:51]} 5. Nf3 {[%clk 0:02:59]}  Nc6 {[%clk 0:02:51]} 6. Be2 {[%clk 0:02:58]}  Bg4 {[%clk 0:02:51]} 7. O-O {[%clk 0:02:57]}  O-O-O {[%clk 0:02:51]} 8. h3 {[%clk 0:02:56]}  h5 {[%clk 0:02:50]} 9. Bd2 {[%clk 0:02:55]}  e6 {[%clk 0:02:50]} 10. Ne4 {[%clk 0:02:53]}  Qf5 {[%clk 0:02:50]} 11. Nh4 {[%clk 0:02:49]}  Bxe2 {[%clk 0:02:47]} 12. Qxe2 {[%clk 0:02:50]}  Qd5 {[%clk 0:02:44]} 13. Nxf6 {[%clk 0:02:47]}  gxf6 {[%clk 0:02:44]} 14. Qf3 {[%clk 0:02:46]}  f5 {[%clk 0:02:20]} 15. Bc3 {[%clk 0:02:41]}  Rg8 {[%clk 0:02:18]} 16. Qxd5 {[%clk 0:02:40]}  Rxd5 {[%clk 0:02:19]} 17. Nf3 {[%clk 0:02:40]}  Bg7 {[%clk 0:02:07]} 18. Rfe1 {[%clk 0:02:30]}  Bxc3 {[%clk 0:02:06]} 19. bxc3 {[%clk 0:02:31]}  Ra5 {[%clk 0:01:57]} 20. a4 {[%clk 0:02:26]}  Kd7 {[%clk 0:01:51]} 21. Reb1 {[%clk 0:02:20]}  b6 {[%clk 0:01:49]} 22. Rb5 {[%clk 0:02:20]}  Ke7 {[%clk 0:01:48]} 23. Re1 {[%clk 0:02:10]}  Kf6 {[%clk 0:01:38]} 24. Rxa5 {[%clk 0:02:09]}  Nxa5 {[%clk 0:01:39]} 25. Ne5 {[%clk 0:02:08]}  Rd8 {[%clk 0:01:35]} 26. f4 {[%clk 0:01:58]}  Rd6 {[%clk 0:01:35]} 27. Kf2 {[%clk 0:01:49]}  Nc6 {[%clk 0:01:35]} 28. Kf3 {[%clk 0:01:48]}  Ne7 {[%clk 0:01:32]} 29. c4 {[%clk 0:01:44]}  Ng6 {[%clk 0:01:32]} 30. g3 {[%clk 0:01:42]}  Rd8 {[%clk 0:01:27]} 31. Nc6 {[%clk 0:01:40]}  Rh8 {[%clk 0:01:24]} 32. h4 {[%clk 0:01:28]}  a5 {[%clk 0:01:22]} 33. Rb1 {[%clk 0:01:20]}  Ne7 {[%clk 0:01:20]} 34. Ne5 {[%clk 0:01:07]}  Ng6 {[%clk 0:01:19]} 35. Rb5 {[%clk 0:01:01]}  Nxe5+ {[%clk 0:01:18]} 36. fxe5+ {[%clk 0:01:00]}  Ke7 {[%clk 0:01:15]} 37. c5 {[%clk 0:00:59]}  Rb8 {[%clk 0:01:15]} 38. cxb6 {[%clk 0:00:46]}  cxb6 {[%clk 0:01:16]} 39. Kf4 {[%clk 0:00:47]}  Kd7 {[%clk 0:01:15]} 40. c4 {[%clk 0:00:43]}  Kc7 {[%clk 0:01:12]} 41. d4 {[%clk 0:00:41]}  Rg8 {[%clk 0:01:10]} 42. c5 {[%clk 0:00:27]}  Rg4+ {[%clk 0:01:09]} 43. Kf3 {[%clk 0:00:27]}  Rxd4 {[%clk 0:01:05]} 44. cxb6+ {[%clk 0:00:27]}  Kb7 {[%clk 0:01:04]} 45. Rxa5 {[%clk 0:00:28]}  Kxb6 {[%clk 0:01:01]} 46. Ra8 {[%clk 0:00:28]}  Re4 {[%clk 0:00:56]} 47. Rf8 {[%clk 0:00:27]}  Rxa4 {[%clk 0:00:52]} 48. Rxf7 {[%clk 0:00:27]}  Kc6 {[%clk 0:00:52]} 49. Rh7 {[%clk 0:00:24]}  Kd5 {[%clk 0:00:51]} 50. Rxh5 {[%clk 0:00:25]}  Kxe5 {[%clk 0:00:51]} 51. Rg5 {[%clk 0:00:25]}  Ra3+ {[%clk 0:00:49]} 52. Kg2 {[%clk 0:00:25]}  Kf6 {[%clk 0:00:42]} 53. Rg8 {[%clk 0:00:25]}  e5 {[%clk 0:00:42]} 54. Rf8+ {[%clk 0:00:24]}  Ke6 {[%clk 0:00:41]} 55. h5 {[%clk 0:00:22]}  Ra2+ {[%clk 0:00:38]} 56. Kh3 {[%clk 0:00:22]}  Ra1 {[%clk 0:00:38]} 57. Kh4 {[%clk 0:00:21]}  e4 {[%clk 0:00:32]} 58. h6 {[%clk 0:00:18]}  e3 {[%clk 0:00:30]} 59. Re8+ {[%clk 0:00:18]}  Kf6 {[%clk 0:00:29]} 60. Kh3 {[%clk 0:00:15]}  Rh1+ {[%clk 0:00:24]} 61. Kg2 {[%clk 0:00:15]}  Rxh6 {[%clk 0:00:25]} 62. Rxe3 {[%clk 0:00:15]}  Kg5 {[%clk 0:00:25]} 63. Rf3 {[%clk 0:00:16]}  Ra6 {[%clk 0:00:25]} 64. Rf2 {[%clk 0:00:16]}  Ra3 {[%clk 0:00:26]} 65. Rf3 {[%clk 0:00:16]}  Ra2+ {[%clk 0:00:27]} 66. Rf2 {[%clk 0:00:17]}  Ra1 {[%clk 0:00:27]} 67. Rf1 {[%clk 0:00:17]}  Ra4 {[%clk 0:00:28]} 68. Rf4 {[%clk 0:00:17]}  Rxf4 {[%clk 0:00:27]} 69. gxf4+ {[%clk 0:00:18]}  Kg4 {[%clk 0:00:27]} 70. Kf1 {[%clk 0:00:16]}  Kh3 {[%clk 0:00:28]} 71. Kf2 {[%clk 0:00:16]}  Kh2 {[%clk 0:00:28]} 72. Kf3 {[%clk 0:00:16]}  Kh3 {[%clk 0:00:29]} 73. Kf2 {[%clk 0:00:16]}  Kg4 {[%clk 0:00:30]} 74. Kg2 {[%clk 0:00:17]}  Kh4 {[%clk 0:00:29]} 75. Kh2 {[%clk 0:00:17]}  Kg4 {[%clk 0:00:30]} 76. Kg2 {[%clk 0:00:18]}  Kxf4 {[%clk 0:00:31]} 77. Kf2 {[%clk 0:00:18]}  Ke4 {[%clk 0:00:31]} 78. Ke2 {[%clk 0:00:18]}  Kf4 {[%clk 0:00:32]} 79. Kf2 {[%clk 0:00:19]}  Kg4 {[%clk 0:00:33]} 80. Kg2 {[%clk 0:00:19]}  Kg5 {[%clk 0:00:33]} 81. Kg3 {[%clk 0:00:19]}  Kf6 {[%clk 0:00:34]} 82. Kf4 {[%clk 0:00:20]}  Ke6 {[%clk 0:00:35]} 83. Kf3 {[%clk 0:00:20]}  Ke5 {[%clk 0:00:35]} 84. Ke3 {[%clk 0:00:21]}  f4+ {[%clk 0:00:36]} 85. Kf3 {[%clk 0:00:22]}  Kf5 {[%clk 0:00:37]} 86. Kf2 {[%clk 0:00:22]}  Kg4 {[%clk 0:00:38]} 87. Kg2 {[%clk 0:00:23]}  Kf5 {[%clk 0:00:38]} 88. Kf2 {[%clk 0:00:23]}  Ke4 {[%clk 0:00:39]} 89. Ke2 {[%clk 0:00:24]}  f3+ {[%clk 0:00:40]} 90. Kf2 {[%clk 0:00:25]}  Kf4 {[%clk 0:00:40]} 91. Kf1 {[%clk 0:00:26]}  Ke4 {[%clk 0:00:40]} 92. Kf2 {[%clk 0:00:25]}  Kf4 {[%clk 0:00:41]} 93. Kf1 {[%clk 0:00:26]}  Kf5 {[%clk 0:00:42]} 94. Kf2 {[%clk 0:00:26]}  Kg4 {[%clk 0:00:43]} 95. Kf1 {[%clk 0:00:25]}  Kg3 {[%clk 0:00:43]} 96. Kg1 {[%clk 0:00:25]}  Kf4 {[%clk 0:00:44]} 97. Kf2 {[%clk 0:00:25]}  Ke4 {[%clk 0:00:45]} 98. Kf1 {[%clk 0:00:24]}  Ke3 {[%clk 0:00:46]} 99. Ke1 {[%clk 0:00:25]}  Kd3 {[%clk 0:00:46]} 100. Kf2 {[%clk 0:00:25]}  Ke4 {[%clk 0:00:47]} 101. Kf1 {[%clk 0:00:25]}  Kf4 {[%clk 0:00:48]} 102. Kf2 {[%clk 0:00:26]}  Kg4 {[%clk 0:00:48]} 103. Kf1 {[%clk 0:00:25]}  Kg3 {[%clk 0:00:49]} 104. Kg1 {[%clk 0:00:25]}  Kh3 {[%clk 0:00:49]} 105. Kf2 {[%clk 0:00:25]}  Kg4 {[%clk 0:00:50]} 1/2-1/2


[Site "https://www.chess.com"]

[Event "Titled Tuesday Blitz September 27 Early 2022"]
[White "Badelka, Olga"]
[Black "Martin, Lewis"]
[WhiteFideId "13509926"]
[BlackFideId "410551"]
[WhiteElo "2165"]
[BlackElo "2145"]
[Result "1-0"]
[Round "02"]
[TimeControl "180+1"]
[Date "2022.09.27"]
[WhiteClock "0:00:49"]
[BlackClock "0:00:19"]

1. c4 {[%clk 0:03:00]}  c6 {[%clk 0:02:59]} 2. Nf3 {[%clk 0:02:59]}  Nf6 {[%clk 0:02:58]} 3. e3 {[%clk 0:02:58]}  d5 {[%clk 0:02:57]} 4. b3 {[%clk 0:02:56]}  Nbd7 {[%clk 0:02:54]} 5. Bb2 {[%clk 0:02:56]}  e6 {[%clk 0:02:45]} 6. Be2 {[%clk 0:02:56]}  Be7 {[%clk 0:02:45]} 7. Nc3 {[%clk 0:02:56]}  dxc4 {[%clk 0:02:44]} 8. bxc4 {[%clk 0:02:56]}  b6 {[%clk 0:02:41]} 9. g4 {[%clk 0:02:50]}  O-O {[%clk 0:02:25]} 10. g5 {[%clk 0:02:48]}  Ne8 {[%clk 0:02:25]} 11. h4 {[%clk 0:02:43]}  Bb7 {[%clk 0:02:24]} 12. h5 {[%clk 0:02:42]}  Bxg5 {[%clk 0:02:20]} 13. Rg1 {[%clk 0:02:34]}  Bf6 {[%clk 0:02:14]} 14. Qc2 {[%clk 0:02:33]}  h6 {[%clk 0:02:04]} 15. Ne4 {[%clk 0:02:23]}  Bxb2 {[%clk 0:02:03]} 16. Qxb2 {[%clk 0:02:24]}  c5 {[%clk 0:01:55]} 17. Nd6 {[%clk 0:02:21]}  Nef6 {[%clk 0:01:19]} 18. Nxb7 {[%clk 0:02:20]}  Qc7 {[%clk 0:01:19]} 19. Nh4 {[%clk 0:01:22]}  Qh2 {[%clk 0:01:01]} 20. Nf3 {[%clk 0:01:09]}  Qc7 {[%clk 0:01:00]} 21. O-O-O {[%clk 0:01:09]}  Qxb7 {[%clk 0:00:59]} 22. Ne5 {[%clk 0:01:10]}  Nxe5 {[%clk 0:00:32]} 23. Qxe5 {[%clk 0:01:10]}  Qe7 {[%clk 0:00:24]} 24. Qf4 {[%clk 0:01:05]}  Kh8 {[%clk 0:00:20]} 25. Rxg7 {[%clk 0:01:02]}  Kxg7 {[%clk 0:00:19]} 26. Rg1+ {[%clk 0:00:51]}  Kh8 {[%clk 0:00:19]} 27. Qxh6+ {[%clk 0:00:49]}  Nh7 {[%clk 0:00:19]} 28. Qg7# {[%clk 0:00:49]} 1-0


[Site "https://www.chess.com"]

[Event "Titled Tuesday Blitz September 27 Early 2022"]
[White "Balint, Vilmos"]
[Black "Madaminov, Mukhiddin"]
[WhiteFideId "718050"]
[BlackFideId "14210703"]
[WhiteElo "2076"]
[BlackElo "2106"]
[Result "0-1"]
[Round "02"]
[TimeControl "180+1"]
[Date "2022.09.27"]
[WhiteClock "0:01:40"]
[BlackClock "0:01:25"]

1. e4 {[%clk 0:03:00]}  e5 {[%clk 0:02:59]} 2. f4 {[%clk 0:03:00]}  d5 {[%clk 0:02:55]} 3. exd5 {[%clk 0:03:00]}  exf4 {[%clk 0:02:54]} 4. Nf3 {[%clk 0:03:00]}  Nf6 {[%clk 0:02:54]} 5. Bc4 {[%clk 0:03:00]}  Nxd5 {[%clk 0:02:53]} 6. O-O {[%clk 0:02:59]}  Be7 {[%clk 0:02:54]} 7. Nc3 {[%clk 0:02:59]}  Nxc3 {[%clk 0:02:52]} 8. bxc3 {[%clk 0:02:59]}  O-O {[%clk 0:02:52]} 9. d4 {[%clk 0:02:59]}  Bd6 {[%clk 0:02:53]} 10. Rb1 {[%clk 0:02:48]}  Nd7 {[%clk 0:02:51]} 11. Bd3 {[%clk 0:02:44]}  Nf6 {[%clk 0:02:49]} 12. c4 {[%clk 0:02:44]}  b6 {[%clk 0:02:46]} 13. d5 {[%clk 0:02:41]}  Ng4 {[%clk 0:02:33]} 14. c3 {[%clk 0:02:22]}  Bd7 {[%clk 0:02:27]} 15. Nd4 {[%clk 0:02:20]}  Qh4 {[%clk 0:02:19]} 16. h3 {[%clk 0:02:11]}  Ne3 {[%clk 0:02:14]} 17. Bxe3 {[%clk 0:02:07]}  fxe3 {[%clk 0:02:15]} 18. Bf5 {[%clk 0:01:54]}  Qg3 {[%clk 0:02:04]} 19. Rf3 {[%clk 0:01:49]}  Qh2+ {[%clk 0:02:04]} 20. Kf1 {[%clk 0:01:49]}  Qh1+ {[%clk 0:01:37]} 21. Ke2 {[%clk 0:01:49]}  Qxg2+ {[%clk 0:01:38]} 22. Kxe3 {[%clk 0:01:49]}  Rfe8+ {[%clk 0:01:32]} 23. Kd3 {[%clk 0:01:49]}  Bxf5+ {[%clk 0:01:32]} 24. Nxf5 {[%clk 0:01:48]}  Re5 {[%clk 0:01:28]} 25. Rg3 {[%clk 0:01:41]}  Qe4+ {[%clk 0:01:24]} 26. Kd2 {[%clk 0:01:40]}  Rxf5 {[%clk 0:01:25]} 0-1


[Site "https://www.chess.com"]

[Event "Titled Tuesday Blitz September 27 Early 2022"]
[White "Bartel, Michal"]
[Black "Dahale, Atul"]
[WhiteFideId "1119257"]
[BlackFideId "5037794"]
[WhiteElo "2274"]
[BlackElo "2017"]
[Result "1-0"]
[Round "02"]
[TimeControl "180+1"]
[Date "2022.09.27"]
[WhiteClock "0:02:04"]
[BlackClock "0:00:49"]

1. e4 {[%clk 0:03:00]}  d6 {[%clk 0:02:53]} 2. d4 {[%clk 0:03:00]}  Nf6 {[%clk 0:02:53]} 3. Nc3 {[%clk 0:03:00]}  g6 {[%clk 0:02:53]} 4. g3 {[%clk 0:02:57]}  Bg7 {[%clk 0:02:52]} 5. Bg2 {[%clk 0:02:57]}  O-O {[%clk 0:02:52]} 6. Nge2 {[%clk 0:02:57]}  c6 {[%clk 0:02:53]} 7. O-O {[%clk 0:02:58]}  Nbd7 {[%clk 0:02:53]} 8. h3 {[%clk 0:02:58]}  e5 {[%clk 0:02:54]} 9. Be3 {[%clk 0:02:58]}  Re8 {[%clk 0:02:50]} 10. a4 {[%clk 0:02:58]}  a5 {[%clk 0:02:50]} 11. Qd2 {[%clk 0:02:58]}  Qc7 {[%clk 0:02:46]} 12. Rad1 {[%clk 0:02:58]}  Nb6 {[%clk 0:02:45]} 13. b3 {[%clk 0:02:57]}  Be6 {[%clk 0:02:36]} 14. f4 {[%clk 0:02:56]}  exd4 {[%clk 0:02:28]} 15. Nxd4 {[%clk 0:02:56]}  Rad8 {[%clk 0:02:22]} 16. g4 {[%clk 0:02:54]}  d5 {[%clk 0:02:04]} 17. e5 {[%clk 0:02:53]}  Ne4 {[%clk 0:01:59]} 18. Nxe4 {[%clk 0:02:53]}  dxe4 {[%clk 0:02:00]} 19. Qf2 {[%clk 0:02:51]}  Nd5 {[%clk 0:01:57]} 20. Nxe6 {[%clk 0:02:45]}  fxe6 {[%clk 0:01:50]} 21. Bxe4 {[%clk 0:02:44]}  Nxe3 {[%clk 0:01:45]} 22. Qxe3 {[%clk 0:02:45]}  Bf8 {[%clk 0:01:43]} 23. Kg2 {[%clk 0:02:42]}  b5 {[%clk 0:01:40]} 24. Qc3 {[%clk 0:02:35]}  bxa4 {[%clk 0:01:38]} 25. bxa4 {[%clk 0:02:35]}  Bb4 {[%clk 0:01:37]} 26. Qxc6 {[%clk 0:02:34]}  Qxc6 {[%clk 0:01:31]} 27. Bxc6 {[%clk 0:02:34]}  Rxd1 {[%clk 0:01:28]} 28. Rxd1 {[%clk 0:02:34]}  Rc8 {[%clk 0:01:29]} 29. Be4 {[%clk 0:02:34]}  Rc4 {[%clk 0:01:26]} 30. Kf3 {[%clk 0:02:34]}  Rc3+ {[%clk 0:01:26]} 31. Rd3 {[%clk 0:02:33]}  Rc4 {[%clk 0:01:22]} 32. h4 {[%clk 0:02:26]}  Bf8 {[%clk 0:01:15]} 33. Rd7 {[%clk 0:02:15]}  Rxa4 {[%clk 0:01:13]} 34. h5 {[%clk 0:02:15]}  Ra3+ {[%clk 0:01:11]} 35. Ke2 {[%clk 0:02:15]}  Rg3 {[%clk 0:01:11]} 36. hxg6 {[%clk 0:02:14]}  hxg6 {[%clk 0:01:11]} 37. g5 {[%clk 0:02:11]}  a4 {[%clk 0:01:03]} 38. Bxg6 {[%clk 0:02:11]}  a3 {[%clk 0:01:03]} 39. Bf7+ {[%clk 0:02:11]}  Kh8 {[%clk 0:01:03]} 40. Bxe6 {[%clk 0:02:12]}  Rg2+ {[%clk 0:01:01]} 41. Kd3 {[%clk 0:02:10]}  Bb4 {[%clk 0:00:58]} 42. Rb7 {[%clk 0:02:06]}  Rd2+ {[%clk 0:00:55]} 43. Ke4 {[%clk 0:02:05]}  Bc3 {[%clk 0:00:54]} 44. g6 {[%clk 0:02:05]}  Rg2 {[%clk 0:00:49]} 45. Rh7# {[%clk 0:02:04]} 1-0


[Site "https://www.chess.com"]

[Event "Titled Tuesday Blitz September 27 Early 2022"]
[White "Bashirli, Saadat"]
[Black "Dushyant Sharma"]
[WhiteFideId "13429990"]
[BlackFideId "25065130"]
[WhiteElo "1173"]
[BlackElo "2144"]
[Result "1-0"]
[Round "02"]
[TimeControl "180+1"]
[Date "2022.09.27"]
[WhiteClock "0:00:16"]
[BlackClock "0:00:09"]

1. d4 {[%clk 0:03:00]}  d5 {[%clk 0:02:57]} 2. Bg5 {[%clk 0:03:00]}  h6 {[%clk 0:02:57]} 3. Bf4 {[%clk 0:02:59]}  Nf6 {[%clk 0:02:56]} 4. Nf3 {[%clk 0:02:56]}  e6 {[%clk 0:02:56]} 5. e3 {[%clk 0:02:53]}  Bd6 {[%clk 0:02:56]} 6. Bxd6 {[%clk 0:02:52]}  cxd6 {[%clk 0:02:54]} 7. Bd3 {[%clk 0:02:49]}  Nc6 {[%clk 0:02:54]} 8. O-O {[%clk 0:02:48]}  e5 {[%clk 0:02:48]} 9. dxe5 {[%clk 0:02:44]}  dxe5 {[%clk 0:02:49]} 10. Bb5 {[%clk 0:02:42]}  Qd6 {[%clk 0:02:46]} 11. c4 {[%clk 0:02:35]}  e4 {[%clk 0:02:19]} 12. Nd4 {[%clk 0:02:29]}  O-O {[%clk 0:02:13]} 13. cxd5 {[%clk 0:02:16]}  Nxd5 {[%clk 0:02:11]} 14. Nxc6 {[%clk 0:02:09]}  bxc6 {[%clk 0:02:12]} 15. Bc4 {[%clk 0:02:08]}  Rb8 {[%clk 0:02:09]} 16. b3 {[%clk 0:02:03]}  Rd8 {[%clk 0:02:04]} 17. Qc2 {[%clk 0:01:54]}  Qe5 {[%clk 0:01:44]} 18. Nd2 {[%clk 0:01:45]}  Nb4 {[%clk 0:01:40]} 19. Qxe4 {[%clk 0:01:43]}  Qh5 {[%clk 0:01:25]} 20. Nf3 {[%clk 0:01:32]}  Bf5 {[%clk 0:01:19]} 21. Qe7 {[%clk 0:01:14]}  Rd7 {[%clk 0:01:15]} 22. Qe5 {[%clk 0:01:10]}  Rbd8 {[%clk 0:01:09]} 23. Nd4 {[%clk 0:01:06]}  Bg6 {[%clk 0:00:41]} 24. Qxh5 {[%clk 0:01:04]}  Bxh5 {[%clk 0:00:42]} 25. a3 {[%clk 0:01:03]}  Nd5 {[%clk 0:00:38]} 26. Nxc6 {[%clk 0:01:02]}  Re8 {[%clk 0:00:35]} 27. Rac1 {[%clk 0:00:45]}  Nb6 {[%clk 0:00:32]} 28. Bb5 {[%clk 0:00:43]}  Rd2 {[%clk 0:00:32]} 29. Nd4 {[%clk 0:00:37]}  Re5 {[%clk 0:00:31]} 30. Bc6 {[%clk 0:00:32]}  Rb2 {[%clk 0:00:26]} 31. Rc3 {[%clk 0:00:32]}  Kh7 {[%clk 0:00:22]} 32. h3 {[%clk 0:00:32]}  Bg6 {[%clk 0:00:21]} 33. Rfc1 {[%clk 0:00:30]}  Ra5 {[%clk 0:00:20]} 34. a4 {[%clk 0:00:30]}  Rg5 {[%clk 0:00:20]} 35. Rc5 {[%clk 0:00:26]}  Rxc5 {[%clk 0:00:19]} 36. Rxc5 {[%clk 0:00:27]}  Nc8 {[%clk 0:00:18]} 37. Bd5 {[%clk 0:00:24]}  Nd6 {[%clk 0:00:18]} 38. Ra5 {[%clk 0:00:24]}  Nc8 {[%clk 0:00:12]} 39. Bc4 {[%clk 0:00:20]}  Nd6 {[%clk 0:00:12]} 40. Rxa7 {[%clk 0:00:20]}  Nxc4 {[%clk 0:00:12]} 41. bxc4 {[%clk 0:00:21]}  Rb4 {[%clk 0:00:12]} 42. c5 {[%clk 0:00:21]}  Rc4 {[%clk 0:00:12]} 43. c6 {[%clk 0:00:21]}  Be4 {[%clk 0:00:12]} 44. c7 {[%clk 0:00:20]}  f5 {[%clk 0:00:12]} 45. a5 {[%clk 0:00:19]}  f4 {[%clk 0:00:11]} 46. a6 {[%clk 0:00:19]}  Rc1+ {[%clk 0:00:10]} 47. Kh2 {[%clk 0:00:19]}  fxe3 {[%clk 0:00:11]} 48. fxe3 {[%clk 0:00:19]}  Kg6 {[%clk 0:00:11]} 49. Rb7 {[%clk 0:00:16]}  Ra1 {[%clk 0:00:10]} 50. Rb6+ {[%clk 0:00:15]}  Kh5 {[%clk 0:00:10]} 51. c8=Q {[%clk 0:00:15]}  Ra2 {[%clk 0:00:09]} 52. Qg4# {[%clk 0:00:16]} 1-0


[Site "https://www.chess.com"]

[Event "Titled Tuesday Blitz September 27 Early 2022"]
[White "Beerdsen, Thomas"]
[Black "Machidon, Cristi"]
[WhiteFideId "1030108"]
[BlackFideId "13904590"]
[WhiteElo "2567"]
[BlackElo "2312"]
[Result "0-1"]
[Round "02"]
[TimeControl "180+1"]
[Date "2022.09.27"]
[WhiteClock "0:01:36"]
[BlackClock "0:01:11"]

1. e4 {[%clk 0:03:00]}  c6 {[%clk 0:02:59]} 2. d4 {[%clk 0:02:59]}  d5 {[%clk 0:03:00]} 3. f3 {[%clk 0:03:00]}  Qb6 {[%clk 0:02:55]} 4. Nc3 {[%clk 0:02:59]}  e6 {[%clk 0:02:47]} 5. a3 {[%clk 0:02:57]}  Nf6 {[%clk 0:02:47]} 6. Be3 {[%clk 0:02:57]}  c5 {[%clk 0:02:37]} 7. dxc5 {[%clk 0:02:54]}  Bxc5 {[%clk 0:02:33]} 8. Na4 {[%clk 0:02:54]}  Qa5+ {[%clk 0:02:32]} 9. b4 {[%clk 0:02:51]}  Qxa4 {[%clk 0:02:31]} 10. Bxc5 {[%clk 0:02:48]}  Nbd7 {[%clk 0:02:13]} 11. Bd6 {[%clk 0:02:31]}  Qc6 {[%clk 0:02:02]} 12. e5 {[%clk 0:02:29]}  Qc3+ {[%clk 0:02:01]} 13. Kf2 {[%clk 0:02:29]}  Nxe5 {[%clk 0:01:57]} 14. Bb5+ {[%clk 0:02:27]}  Bd7 {[%clk 0:01:55]} 15. Ne2 {[%clk 0:02:25]}  Ne4+ {[%clk 0:01:28]} 16. fxe4 {[%clk 0:02:20]}  Ng4+ {[%clk 0:01:28]} 17. Kf1 {[%clk 0:02:19]}  Bxb5 {[%clk 0:01:25]} 18. Bc5 {[%clk 0:02:09]}  dxe4 {[%clk 0:01:17]} 19. h3 {[%clk 0:01:51]}  Ne3+ {[%clk 0:01:15]} 20. Bxe3 {[%clk 0:01:51]}  Qxe3 {[%clk 0:01:16]} 21. c4 {[%clk 0:01:40]}  Bxc4 {[%clk 0:01:14]} 22. Qc2 {[%clk 0:01:38]}  Bd3 {[%clk 0:01:13]} 23. Qb2 {[%clk 0:01:39]}  Rc8 {[%clk 0:01:11]} 24. Re1 {[%clk 0:01:36]}  Rc2 {[%clk 0:01:11]} 0-1


[Site "https://www.chess.com"]